[Event "*** Titled Tuesday Blitz"]
[Site "Chess.com"]
[Date "2021.04.06"]
[Round "2"]
[White "Sychev_Klementy"]
[Black "Ladislav1969"]
[Result "1-0"]
[WhiteElo "2887"]
[BlackElo "2352"]
[TimeControl "180+1"]
[EndTime "10:18:59 PDT"]
[Termination "Sychev_Klementy won on time"]

1. e4 {[%clk 0:03:00.9]} 1... c5 {[%clk 0:02:59.9]} 2. Nf3 {[%clk 0:02:59.4]}
2... e6 {[%clk 0:03:00.5]} 3. d4 {[%clk 0:02:54.7]} 3... cxd4 {[%clk 0:03:01.4]}
4. Nxd4 {[%clk 0:02:55.3]} 4... a6 {[%clk 0:03:02]} 5. Bd3 {[%clk 0:02:54.3]}
5... Nc6 {[%clk 0:03:02]} 6. Nxc6 {[%clk 0:02:53.6]} 6... dxc6 {[%clk
0:03:02.9]} 7. Nd2 {[%clk 0:02:53.7]} 7... e5 {[%clk 0:03:03.2]} 8. Nc4 {[%clk
0:02:53.6]} 8... Nf6 {[%clk 0:03:01.7]} 9. O-O {[%clk 0:02:48.8]} 9... Bd6
{[%clk 0:02:48]} 10. b3 {[%clk 0:02:24]} 10... b5 {[%clk 0:02:34.6]} 11. Nxd6+
{[%clk 0:02:19.6]} 11... Qxd6 {[%clk 0:02:34.7]} 12. a4 {[%clk 0:02:19.3]} 12...
b4 {[%clk 0:02:35]} 13. Bc4 {[%clk 0:02:11.8]} 13... Qe7 {[%clk 0:02:32]} 14.
Qe2 {[%clk 0:02:04.8]} 14... O-O {[%clk 0:02:30.9]} 15. f3 {[%clk 0:02:04]}
15... a5 {[%clk 0:02:26.9]} 16. Be3 {[%clk 0:02:01.7]} 16... Be6 {[%clk
0:02:26.3]} 17. Rfd1 {[%clk 0:02:00]} 17... Rfd8 {[%clk 0:02:18.5]} 18. g3
{[%clk 0:01:52.5]} 18... h6 {[%clk 0:02:13.1]} 19. Kg2 {[%clk 0:01:45.9]} 19...
Nd7 {[%clk 0:02:04]} 20. Rd2 {[%clk 0:01:42.9]} 20... Nc5 {[%clk 0:01:57.7]} 21.
Rad1 {[%clk 0:01:41.9]} 21... Rxd2 {[%clk 0:01:56.6]} 22. Rxd2 {[%clk 0:01:41]}
22... Re8 {[%clk 0:01:44.7]} 23. Bxe6 {[%clk 0:01:30.4]} 23... Nxe6 {[%clk
0:01:41.5]} 24. Qa6 {[%clk 0:01:28.6]} 24... Rd8 {[%clk 0:01:10.5]} 25. Qxa5
{[%clk 0:01:20.8]} 25... Rxd2+ {[%clk 0:01:08.7]} 26. Bxd2 {[%clk 0:01:21.7]}
26... c5 {[%clk 0:01:08.9]} 27. Qa8+ {[%clk 0:01:09.8]} 27... Kh7 {[%clk
0:01:05.7]} 28. Be3 {[%clk 0:01:02.2]} 28... Qd6 {[%clk 0:01:00.9]} 29. Qd5
{[%clk 0:01:00.4]} 29... Qa6 {[%clk 0:00:59.8]} 30. Kf2 {[%clk 0:00:58.8]} 30...
Nd4 {[%clk 0:00:43.4]} 31. Bxd4 {[%clk 0:00:56.8]} 31... cxd4 {[%clk 0:00:28.4]}
32. Qxe5 {[%clk 0:00:55.6]} 32... Qc6 {[%clk 0:00:28.3]} 33. Qf5+ {[%clk
0:00:55.6]} 33... Kg8 {[%clk 0:00:26.9]} 34. e5 {[%clk 0:00:55.8]} 34... Qc5
{[%clk 0:00:18.3]} 35. Kg2 {[%clk 0:00:42]} 35... g6 {[%clk 0:00:11.8]} 36. Qe4
{[%clk 0:00:41.1]} 36... Qc3 {[%clk 0:00:09.9]} 37. e6 {[%clk 0:00:27.6]} 37...
f5 {[%clk 0:00:09.3]} 38. Qa8+ {[%clk 0:00:14.8]} 38... Kg7 {[%clk 0:00:09.5]}
39. Qb7+ {[%clk 0:00:15]} 39... Kh8 {[%clk 0:00:06.1]} 40. e7 {[%clk 0:00:12.4]}
40... Qxc2+ {[%clk 0:00:03.7]} 41. Kh3 {[%clk 0:00:12.8]} 41... Qe2 {[%clk
0:00:03.4]} 42. Qd7 {[%clk 0:00:06.7]} 42... Qf1+ {[%clk 0:00:02.4]} 43. Kh4
{[%clk 0:00:07.1]} 43... g5+ {[%clk 0:00:01.2]} 44. Kh5 {[%clk 0:00:07.5]} 1-0

[Event "*** Titled Tuesday Blitz"]
[Site "Chess.com"]
[Date "2021.04.06"]
[Round "2"]
[White "pfalcon1949"]
[Black "Rondo_Capriccioso"]
[Result "0-1"]
[WhiteElo "1997"]
[BlackElo "2483"]
[TimeControl "180+1"]
[EndTime "10:19:00 PDT"]
[Termination "Rondo_Capriccioso won by resignation"]

1. c4 {[%clk 0:03:00.9]} 1... Nf6 {[%clk 0:02:58]} 2. Nc3 {[%clk 0:03:01]} 2...
g6 {[%clk 0:02:55.6]} 3. g3 {[%clk 0:03:01.1]} 3... d6 {[%clk 0:02:56.5]} 4. Bg2
{[%clk 0:03:01.4]} 4... Bg7 {[%clk 0:02:57.4]} 5. e4 {[%clk 0:03:01.4]} 5... O-O
{[%clk 0:02:58.3]} 6. Nge2 {[%clk 0:03:01.6]} 6... c5 {[%clk 0:02:51.9]} 7. O-O
{[%clk 0:03:01.3]} 7... Nc6 {[%clk 0:02:51.8]} 8. d3 {[%clk 0:02:58.9]} 8... Ne8
{[%clk 0:02:48.5]} 9. Be3 {[%clk 0:02:58.4]} 9... Nc7 {[%clk 0:02:48.6]} 10. d4
{[%clk 0:02:54.4]} 10... cxd4 {[%clk 0:02:39.9]} 11. Nxd4 {[%clk 0:02:54.2]}
11... Ne6 {[%clk 0:02:34.4]} 12. Nde2 {[%clk 0:02:52]} 12... Ne5 {[%clk
0:02:32.2]} 13. b3 {[%clk 0:02:49.2]} 13... Ng4 {[%clk 0:02:30.2]} 14. Bd2
{[%clk 0:02:45.9]} 14... Bd7 {[%clk 0:02:12.5]} 15. h3 {[%clk 0:02:42.5]} 15...
Ne5 {[%clk 0:02:10.2]} 16. Be3 {[%clk 0:02:42.5]} 16... a6 {[%clk 0:02:03.9]}
17. Rc1 {[%clk 0:02:42]} 17... Rb8 {[%clk 0:02:02.5]} 18. a4 {[%clk 0:02:38.1]}
18... Nc6 {[%clk 0:01:39]} 19. Qd2 {[%clk 0:02:34]} 19... Qa5 {[%clk 0:01:33.4]}
20. Rfd1 {[%clk 0:02:30]} 20... Rfd8 {[%clk 0:01:27.6]} 21. Nd5 {[%clk
0:02:25.1]} 21... Qxd2 {[%clk 0:01:21.7]} 22. Rxd2 {[%clk 0:02:26]} 22... Nc5
{[%clk 0:01:17.9]} 23. Bxc5 {[%clk 0:02:14.4]} 23... dxc5 {[%clk 0:01:18.8]} 24.
Rcd1 {[%clk 0:02:14.2]} 24... Kf8 {[%clk 0:01:14]} 25. f4 {[%clk 0:02:10.2]}
25... Nd4 {[%clk 0:01:11.8]} 26. Nxd4 {[%clk 0:02:09.8]} 26... Bxd4+ {[%clk
0:01:12.7]} 27. Kh2 {[%clk 0:02:06.6]} 27... b5 {[%clk 0:01:11.3]} 28. axb5
{[%clk 0:02:04.6]} 28... axb5 {[%clk 0:01:12.2]} 29. Bf1 {[%clk 0:01:52.1]}
29... b4 {[%clk 0:00:57.3]} 30. Bg2 {[%clk 0:01:40.8]} 30... Rdc8 {[%clk
0:00:50.4]} 31. Re2 {[%clk 0:01:32.7]} 31... Bc6 {[%clk 0:00:45.4]} 32. e5
{[%clk 0:01:27.4]} 32... h5 {[%clk 0:00:35.8]} 33. h4 {[%clk 0:01:26.8]} 33...
Bd7 {[%clk 0:00:34.3]} 34. Bh3 {[%clk 0:01:24]} 34... Bxh3 {[%clk 0:00:30.6]}
35. Kxh3 {[%clk 0:01:23.9]} 35... e6 {[%clk 0:00:29.1]} 36. Nf6 {[%clk
0:01:22.6]} 36... Ra8 {[%clk 0:00:29.5]} 37. Red2 {[%clk 0:01:18.4]} 37... Ra3
{[%clk 0:00:28.8]} 38. Rd3 {[%clk 0:01:17.1]} 38... Ra2 {[%clk 0:00:26.1]} 39.
R1d2 {[%clk 0:01:14.5]} 39... Rca8 {[%clk 0:00:26.5]} 40. g4 {[%clk 0:01:13.4]}
40... hxg4+ {[%clk 0:00:23.5]} 41. Kxg4 {[%clk 0:01:13]} 41... Rxd2 {[%clk
0:00:23.6]} 42. Rxd2 {[%clk 0:01:12.4]} 42... Ra1 {[%clk 0:00:23.9]} 43. Rg2
{[%clk 0:01:08.3]} 43... Rb1 {[%clk 0:00:21.2]} 44. Rg3 {[%clk 0:01:07.4]} 44...
Ke7 {[%clk 0:00:21.1]} 45. h5 {[%clk 0:01:06.5]} 45... gxh5+ {[%clk 0:00:20.7]}
46. Nxh5 {[%clk 0:01:02.7]} 46... Bc3 {[%clk 0:00:21]} 47. Rd3 {[%clk
0:00:51.6]} 47... Rxb3 {[%clk 0:00:20.6]} 48. Ng7 {[%clk 0:00:51]} 48... Rb1
{[%clk 0:00:19.8]} 49. Kf3 {[%clk 0:00:49.6]} 49... Rf1+ {[%clk 0:00:19.7]} 50.
Ke4 {[%clk 0:00:49.7]} 50... Re1+ {[%clk 0:00:20]} 51. Kf3 {[%clk 0:00:49.7]}
51... Rg1 {[%clk 0:00:20.6]} 52. Nh5 {[%clk 0:00:47.8]} 52... Bd4 {[%clk
0:00:21.1]} 53. Nf6 {[%clk 0:00:47.7]} 53... Rb1 {[%clk 0:00:20.5]} 54. Ke4
{[%clk 0:00:46.8]} 54... b3 {[%clk 0:00:20.6]} 55. Kf3 {[%clk 0:00:46.5]} 55...
b2 {[%clk 0:00:20.8]} 56. Rb3 {[%clk 0:00:47]} 56... Rf1+ {[%clk 0:00:21.2]} 57.
Ke4 {[%clk 0:00:46.5]} 57... b1=Q+ {[%clk 0:00:22.1]} 58. Rxb1 {[%clk
0:00:46.6]} 58... Rxb1 {[%clk 0:00:21.4]} 59. f5 {[%clk 0:00:47.5]} 59... Re1+
{[%clk 0:00:21.3]} 60. Kf3 {[%clk 0:00:47.1]} 60... Rf1+ {[%clk 0:00:21.9]} 61.
Ke4 {[%clk 0:00:47.1]} 61... Rxf5 {[%clk 0:00:22.8]} 62. Kd3 {[%clk 0:00:47.1]}
62... Rxe5 {[%clk 0:00:23.1]} 63. Ng4 {[%clk 0:00:46.5]} 63... Rg5 {[%clk
0:00:23.4]} 64. Nh2 {[%clk 0:00:45.3]} 64... Rg3+ {[%clk 0:00:23.6]} 65. Ke4
{[%clk 0:00:45.6]} 65... Re3+ {[%clk 0:00:23.5]} 66. Kf4 {[%clk 0:00:46.2]}
66... f6 {[%clk 0:00:23]} 67. Ng4 {[%clk 0:00:46.6]} 67... e5+ {[%clk
0:00:23.1]} 68. Kf5 {[%clk 0:00:46.5]} 68... Rf3+ {[%clk 0:00:22.6]} 69. Kg6
{[%clk 0:00:46.1]} 69... Rg3 {[%clk 0:00:23.2]} 70. Kh5 {[%clk 0:00:46.5]} 70...
Rxg4 {[%clk 0:00:23.3]} 71. Kxg4 {[%clk 0:00:46.5]} 71... Ke6 {[%clk 0:00:24.2]}
72. Kf3 {[%clk 0:00:46.7]} 72... f5 {[%clk 0:00:25.1]} 73. Ke2 {[%clk
0:00:47.6]} 73... f4 {[%clk 0:00:25.8]} 74. Kf1 {[%clk 0:00:47.9]} 74... Kf5
{[%clk 0:00:26.7]} 75. Ke2 {[%clk 0:00:48.4]} 75... e4 {[%clk 0:00:27.6]} 0-1

[Event "*** Titled Tuesday Blitz"]
[Site "Chess.com"]
[Date "2021.04.06"]
[Round "2"]
[White "Vesper2018"]
[Black "BilodeauA"]
[Result "0-1"]
[WhiteElo "2560"]
[BlackElo "2897"]
[TimeControl "180+1"]
[EndTime "10:19:02 PDT"]
[Termination "BilodeauA won on time"]

1. e4 {[%clk 0:02:59.6]} 1... e5 {[%clk 0:02:58.3]} 2. Nf3 {[%clk 0:02:59.1]}
2... Nc6 {[%clk 0:02:58.8]} 3. Bb5 {[%clk 0:02:57.4]} 3... g6 {[%clk 0:02:55.9]}
4. c3 {[%clk 0:02:55.1]} 4... a6 {[%clk 0:02:53.9]} 5. Ba4 {[%clk 0:02:55]} 5...
Bg7 {[%clk 0:02:51.5]} 6. d4 {[%clk 0:02:54.5]} 6... exd4 {[%clk 0:02:51.2]} 7.
cxd4 {[%clk 0:02:54.8]} 7... b5 {[%clk 0:02:51.9]} 8. Bb3 {[%clk 0:02:46.4]}
8... Nge7 {[%clk 0:02:50.7]} 9. d5 {[%clk 0:02:40.5]} 9... Na5 {[%clk
0:02:48.2]} 10. Bc2 {[%clk 0:02:40.8]} 10... d6 {[%clk 0:02:41.3]} 11. O-O
{[%clk 0:02:39.7]} 11... O-O {[%clk 0:02:37.4]} 12. a4 {[%clk 0:02:31]} 12... b4
{[%clk 0:02:25]} 13. Nd4 {[%clk 0:02:23.4]} 13... Rb8 {[%clk 0:02:01.2]} 14. b3
{[%clk 0:02:08.5]} 14... c5 {[%clk 0:01:57.7]} 15. dxc6 {[%clk 0:02:08.4]} 15...
Nexc6 {[%clk 0:01:56.6]} 16. Bb2 {[%clk 0:02:05.9]} 16... Nxd4 {[%clk
0:01:15.7]} 17. Bxd4 {[%clk 0:02:04.2]} 17... Bxd4 {[%clk 0:01:16.3]} 18. Qxd4
{[%clk 0:02:04]} 18... Be6 {[%clk 0:01:17.2]} 19. Nd2 {[%clk 0:01:52.2]} 19...
Qb6 {[%clk 0:01:17.1]} 20. Qf6 {[%clk 0:01:12]} 20... Qc5 {[%clk 0:01:15.3]} 21.
Rac1 {[%clk 0:01:09.2]} 21... Qe5 {[%clk 0:01:12.5]} 22. Qh4 {[%clk 0:00:50.2]}
22... Rfc8 {[%clk 0:01:02.5]} 23. Kh1 {[%clk 0:00:37]} 23... Rc3 {[%clk
0:00:57.5]} 24. f4 {[%clk 0:00:32.7]} 24... Qh5 {[%clk 0:00:45.4]} 25. Qf2
{[%clk 0:00:22.5]} 25... Rbc8 {[%clk 0:00:36.2]} 26. f5 {[%clk 0:00:21.7]} 26...
gxf5 {[%clk 0:00:36.7]} 27. exf5 {[%clk 0:00:21.4]} 27... Bd5 {[%clk 0:00:37.3]}
28. Bd1 {[%clk 0:00:16.2]} 28... Qg5 {[%clk 0:00:31.4]} 29. Rb1 {[%clk
0:00:08.2]} 29... Kh8 {[%clk 0:00:26.7]} 30. Nf3 {[%clk 0:00:08.3]} 30... Qf6
{[%clk 0:00:24.9]} 31. Be2 {[%clk 0:00:04.8]} 31... Rc2 {[%clk 0:00:25.2]} 32.
Rfd1 {[%clk 0:00:04.1]} 32... Bxb3 {[%clk 0:00:23.2]} 33. Nd4 {[%clk 0:00:03.4]}
33... Rxe2 {[%clk 0:00:20.7]} 34. Nxe2 {[%clk 0:00:03.4]} 34... Bxd1 {[%clk
0:00:21.3]} 35. Rxd1 {[%clk 0:00:04.1]} 35... b3 {[%clk 0:00:21.7]} 36. Nd4
{[%clk 0:00:03.9]} 36... Rb8 {[%clk 0:00:19.5]} 37. Rb1 {[%clk 0:00:03.6]} 37...
h6 {[%clk 0:00:18.4]} 38. h3 {[%clk 0:00:03.6]} 38... Qe5 {[%clk 0:00:18.5]} 39.
Qd2 {[%clk 0:00:03.6]} 39... Nc4 {[%clk 0:00:18.2]} 40. Qxh6+ {[%clk 0:00:03.4]}
40... Kg8 {[%clk 0:00:18.9]} 41. Qg5+ {[%clk 0:00:03.9]} 41... Qg7 {[%clk
0:00:16.1]} 42. Qh4 {[%clk 0:00:03.6]} 42... b2 {[%clk 0:00:09.9]} 43. Nf3
{[%clk 0:00:02.9]} 43... Na3 {[%clk 0:00:05]} 44. f6 {[%clk 0:00:03]} 44... Qg6
{[%clk 0:00:05.2]} 0-1

[Event "*** Titled Tuesday Blitz"]
[Site "Chess.com"]
[Date "2021.04.06"]
[Round "2"]
[White "Zmeeed63"]
[Black "Rodalquilar"]
[Result "0-1"]
[WhiteElo "2330"]
[BlackElo "2668"]
[TimeControl "180+1"]
[EndTime "10:19:03 PDT"]
[Termination "Rodalquilar won by resignation"]

1. d4 {[%clk 0:03:00.9]} 1... d5 {[%clk 0:02:59.9]} 2. c4 {[%clk 0:03:01.2]}
2... e6 {[%clk 0:03:00.3]} 3. Nc3 {[%clk 0:03:00.9]} 3... a6 {[%clk 0:02:59.7]}
4. b3 {[%clk 0:02:54.5]} 4... Nf6 {[%clk 0:02:55.6]} 5. e3 {[%clk 0:02:51.7]}
5... c5 {[%clk 0:02:54]} 6. Bd3 {[%clk 0:02:51.6]} 6... cxd4 {[%clk 0:02:48.5]}
7. exd4 {[%clk 0:02:48.8]} 7... dxc4 {[%clk 0:02:49]} 8. Bxc4 {[%clk 0:02:38.9]}
8... b5 {[%clk 0:02:43.3]} 9. Be2 {[%clk 0:02:38.4]} 9... Bb7 {[%clk 0:02:43.5]}
10. Nf3 {[%clk 0:02:38.7]} 10... Bb4 {[%clk 0:02:39.8]} 11. Bb2 {[%clk 0:02:38]}
11... Nd5 {[%clk 0:02:15.8]} 12. Rc1 {[%clk 0:02:36.5]} 12... Qa5 {[%clk
0:02:15.8]} 13. a3 {[%clk 0:01:59.9]} 13... Nxc3 {[%clk 0:01:21]} 14. axb4
{[%clk 0:01:59.1]} 14... Nxd1 {[%clk 0:01:21.5]} 15. bxa5 {[%clk 0:01:59.1]}
15... Nxb2 {[%clk 0:01:21.8]} 16. Rb1 {[%clk 0:01:59.5]} 16... Nd3+ {[%clk
0:01:14.8]} 17. Bxd3 {[%clk 0:01:59.2]} 17... Bxf3 {[%clk 0:01:15]} 18. gxf3
{[%clk 0:02:00.1]} 18... Nd7 {[%clk 0:01:15.4]} 19. Rc1 {[%clk 0:01:57.4]} 19...
Ke7 {[%clk 0:01:15.5]} 20. Kd2 {[%clk 0:01:53.3]} 20... Kd6 {[%clk 0:01:15]} 21.
Be4 {[%clk 0:01:47.8]} 21... Rac8 {[%clk 0:01:14.6]} 22. Bb7 {[%clk 0:01:47.3]}
22... Rxc1 {[%clk 0:01:11.3]} 23. Rxc1 {[%clk 0:01:48.2]} 23... Nb8 {[%clk
0:01:12.2]} 24. Ke3 {[%clk 0:01:38.9]} 24... Rd8 {[%clk 0:01:12]} 25. Ke4 {[%clk
0:01:33.3]} 25... Rd7 {[%clk 0:01:12]} 26. Bc8 {[%clk 0:01:04]} 26... Rc7 {[%clk
0:01:11.6]} 27. Rc5 {[%clk 0:01:04.5]} 27... Rxc5 {[%clk 0:01:07.4]} 28. dxc5+
{[%clk 0:01:05.4]} 28... Kxc5 {[%clk 0:01:08.3]} 29. f4 {[%clk 0:01:03.8]} 29...
Kb4 {[%clk 0:01:04.1]} 30. Ke5 {[%clk 0:00:45.7]} 30... Kxa5 {[%clk 0:00:35.3]}
31. Kd6 {[%clk 0:00:44.3]} 31... Kb6 {[%clk 0:00:35.7]} 32. f5 {[%clk
0:00:42.1]} 32... exf5 {[%clk 0:00:33.4]} 33. Bxf5 {[%clk 0:00:43]} 33... g6
{[%clk 0:00:34]} 34. Be4 {[%clk 0:00:38.2]} 34... a5 {[%clk 0:00:34.1]} 35. Bd5
{[%clk 0:00:35.3]} 35... f6 {[%clk 0:00:25.8]} 36. Ke6 {[%clk 0:00:34.2]} 36...
Kc5 {[%clk 0:00:25.9]} 37. Be4 {[%clk 0:00:11.7]} 37... f5 {[%clk 0:00:26.1]}
38. Bc2 {[%clk 0:00:11.2]} 38... Nc6 {[%clk 0:00:25.3]} 39. Kf7 {[%clk
0:00:10.2]} 39... Nd4 {[%clk 0:00:24.5]} 40. Bd1 {[%clk 0:00:10.5]} 40... Kb4
{[%clk 0:00:24.1]} 41. Kg7 {[%clk 0:00:10]} 41... g5 {[%clk 0:00:21]} 42. Kxh7
{[%clk 0:00:07.6]} 42... g4 {[%clk 0:00:19.6]} 43. Kg6 {[%clk 0:00:07.3]} 43...
Kc3 {[%clk 0:00:20.2]} 44. Kg5 {[%clk 0:00:04.6]} 44... Kd2 {[%clk 0:00:20.2]}
45. Bxg4 {[%clk 0:00:02.8]} 45... fxg4 {[%clk 0:00:20.4]} 46. Kxg4 {[%clk
0:00:03.7]} 46... a4 {[%clk 0:00:20.3]} 47. h4 {[%clk 0:00:04.6]} 47... axb3
{[%clk 0:00:19.5]} 0-1

[Event "*** Titled Tuesday Blitz"]
[Site "Chess.com"]
[Date "2021.04.06"]
[Round "2"]
[White "gmcorrales"]
[Black "Misha_Bilous"]
[Result "1-0"]
[WhiteElo "2792"]
[BlackElo "2520"]
[TimeControl "180+1"]
[EndTime "10:19:04 PDT"]
[Termination "gmcorrales won on time"]

1. e4 {[%clk 0:03:00.9]} 1... c5 {[%clk 0:02:59]} 2. Nf3 {[%clk 0:03:00.6]} 2...
d6 {[%clk 0:02:59.1]} 3. d4 {[%clk 0:02:59.1]} 3... cxd4 {[%clk 0:03:00]} 4.
Nxd4 {[%clk 0:03:00]} 4... Nf6 {[%clk 0:03:00.3]} 5. Nc3 {[%clk 0:03:00.6]} 5...
a6 {[%clk 0:03:00.8]} 6. Be3 {[%clk 0:03:00.5]} 6... e5 {[%clk 0:03:00.9]} 7.
Nb3 {[%clk 0:03:00.6]} 7... Be6 {[%clk 0:03:01.3]} 8. f3 {[%clk 0:03:01]} 8...
h5 {[%clk 0:03:01.6]} 9. Qd2 {[%clk 0:03:00.9]} 9... Nbd7 {[%clk 0:03:02]} 10.
O-O-O {[%clk 0:03:01.6]} 10... Be7 {[%clk 0:03:01.6]} 11. Kb1 {[%clk 0:02:57.8]}
11... Rc8 {[%clk 0:03:01.4]} 12. Nd5 {[%clk 0:02:57.8]} 12... Nxd5 {[%clk
0:03:02]} 13. exd5 {[%clk 0:02:58.7]} 13... Bf5 {[%clk 0:03:02.3]} 14. Bd3
{[%clk 0:02:57.9]} 14... Bxd3 {[%clk 0:03:02.8]} 15. Qxd3 {[%clk 0:02:58.8]}
15... Bg5 {[%clk 0:03:03.2]} 16. Bf2 {[%clk 0:02:55]} 16... g6 {[%clk
0:02:48.3]} 17. h4 {[%clk 0:02:48.9]} 17... Bh6 {[%clk 0:02:48.3]} 18. g4 {[%clk
0:02:48.8]} 18... Bg7 {[%clk 0:02:48.2]} 19. gxh5 {[%clk 0:02:43.1]} 19... Rxh5
{[%clk 0:02:47.6]} 20. Rhg1 {[%clk 0:02:33.8]} 20... Kf8 {[%clk 0:02:33.7]} 21.
Rg4 {[%clk 0:02:28]} 21... Qf6 {[%clk 0:02:29.8]} 22. c3 {[%clk 0:02:20.4]}
22... Rf5 {[%clk 0:02:27.7]} 23. Nd2 {[%clk 0:02:18.7]} 23... Nc5 {[%clk
0:02:18.9]} 24. Bxc5 {[%clk 0:02:18.2]} 24... dxc5 {[%clk 0:02:17.4]} 25. Ne4
{[%clk 0:02:16.8]} 25... Qd8 {[%clk 0:02:12.9]} 26. d6 {[%clk 0:02:16.8]} 26...
Qd7 {[%clk 0:02:10.1]} 27. Rg5 {[%clk 0:02:13.4]} 27... Rxg5 {[%clk 0:01:54.2]}
28. hxg5 {[%clk 0:02:14.3]} 28... c4 {[%clk 0:01:53.9]} 29. Qd5 {[%clk
0:02:11.9]} 29... b5 {[%clk 0:01:42.2]} 30. a3 {[%clk 0:02:11]} 30... Rd8 {[%clk
0:01:40.8]} 31. Ka1 {[%clk 0:02:08.8]} 31... Kg8 {[%clk 0:01:36.1]} 32. Nc5
{[%clk 0:02:06.9]} 32... Qf5 {[%clk 0:01:30.3]} 33. Nb7 {[%clk 0:01:57.6]} 33...
Rd7 {[%clk 0:01:26.3]} 34. Qc6 {[%clk 0:01:57.6]} 34... Qc2 {[%clk 0:01:20.9]}
35. Rh1 {[%clk 0:01:31.1]} 35... Qf5 {[%clk 0:00:44.5]} 36. Qxa6 {[%clk
0:01:13.8]} 36... e4 {[%clk 0:00:39.3]} 37. f4 {[%clk 0:00:41.7]} 37... e3
{[%clk 0:00:33.6]} 38. Qa8+ {[%clk 0:00:14.3]} 38... Bf8 {[%clk 0:00:33.5]} 39.
Qe8 {[%clk 0:00:14.3]} 39... Qd5 {[%clk 0:00:26.2]} 40. Qxd7 {[%clk 0:00:05.9]}
40... Qxh1+ {[%clk 0:00:25.3]} 41. Ka2 {[%clk 0:00:06.8]} 41... e2 {[%clk
0:00:16.5]} 42. Nd8 {[%clk 0:00:06.7]} 42... Qd5 {[%clk 0:00:12.3]} 43. Qe8
{[%clk 0:00:07]} 43... Kg7 {[%clk 0:00:03.8]} 44. d7 {[%clk 0:00:05.7]} 44...
Bxa3 {[%clk 0:00:01.7]} 45. Nxf7 {[%clk 0:00:03.3]} 45... Qxf7 {[%clk
0:00:01.3]} 46. d8=Q {[%clk 0:00:03.3]} 1-0

[Event "*** Titled Tuesday Blitz"]
[Site "Chess.com"]
[Date "2021.04.06"]
[Round "2"]
[White "WinOrTilt"]
[Black "ErikRonka"]
[Result "0-1"]
[WhiteElo "2210"]
[BlackElo "2440"]
[TimeControl "180+1"]
[EndTime "10:19:07 PDT"]
[Termination "ErikRonka won by resignation"]

1. d4 {[%clk 0:02:59.8]} 1... d5 {[%clk 0:02:59.7]} 2. Nf3 {[%clk 0:03:00.1]}
2... Nf6 {[%clk 0:02:59.6]} 3. e3 {[%clk 0:03:00.6]} 3... Bg4 {[%clk 0:02:59]}
4. Be2 {[%clk 0:03:00.9]} 4... Nbd7 {[%clk 0:02:58.6]} 5. Ne5 {[%clk 0:03:01.4]}
5... Bxe2 {[%clk 0:02:58.2]} 6. Qxe2 {[%clk 0:03:02.3]} 6... e6 {[%clk
0:02:57.8]} 7. O-O {[%clk 0:03:02.2]} 7... Be7 {[%clk 0:02:52.4]} 8. f4 {[%clk
0:03:02]} 8... O-O {[%clk 0:02:52.9]} 9. Nd2 {[%clk 0:03:02.3]} 9... Ne8 {[%clk
0:02:52.5]} 10. Qh5 {[%clk 0:02:59.6]} 10... Ndf6 {[%clk 0:02:49.6]} 11. Qh3
{[%clk 0:02:58.7]} 11... Nd6 {[%clk 0:02:47.6]} 12. g4 {[%clk 0:02:57.6]} 12...
Nfe4 {[%clk 0:02:35.8]} 13. Ndf3 {[%clk 0:02:46.7]} 13... f6 {[%clk 0:02:24.1]}
14. Nd3 {[%clk 0:02:46.4]} 14... Qd7 {[%clk 0:02:16.1]} 15. b3 {[%clk
0:02:41.7]} 15... b6 {[%clk 0:02:10.8]} 16. Bb2 {[%clk 0:02:41.6]} 16... c5
{[%clk 0:02:08.9]} 17. c4 {[%clk 0:02:31.4]} 17... dxc4 {[%clk 0:02:00.3]} 18.
bxc4 {[%clk 0:02:23.3]} 18... Nxc4 {[%clk 0:01:58.5]} 19. Bc1 {[%clk 0:02:21.6]}
19... cxd4 {[%clk 0:01:53.1]} 20. exd4 {[%clk 0:02:13.6]} 20... Bc5 {[%clk
0:01:30.2]} 21. Nxc5 {[%clk 0:01:56.8]} 21... bxc5 {[%clk 0:01:25.6]} 22. Rb1
{[%clk 0:01:50.9]} 22... cxd4 {[%clk 0:01:20.7]} 23. Qg2 {[%clk 0:01:48.9]}
23... Nc5 {[%clk 0:01:11.3]} 24. Qc2 {[%clk 0:01:39.8]} 24... Qd5 {[%clk
0:01:04.4]} 25. Bb2 {[%clk 0:01:31.6]} 25... Nxb2 {[%clk 0:01:01.5]} 26. Rxb2
{[%clk 0:01:25.1]} 26... d3 {[%clk 0:00:47]} 27. Qd2 {[%clk 0:01:19.1]} 27...
Ne4 {[%clk 0:00:42.6]} 28. Qe3 {[%clk 0:01:18.6]} 28... Rfd8 {[%clk 0:00:39.2]}
29. Re1 {[%clk 0:01:05.8]} 29... Nc5 {[%clk 0:00:31.2]} 30. Rd1 {[%clk
0:01:05.5]} 30... Rac8 {[%clk 0:00:30.9]} 31. Rbd2 {[%clk 0:00:58.7]} 31... Qc4
{[%clk 0:00:20.5]} 32. Ne1 {[%clk 0:00:51.2]} 32... e5 {[%clk 0:00:08.1]} 33.
fxe5 {[%clk 0:00:33.7]} 33... Qxg4+ {[%clk 0:00:09]} 34. Kh1 {[%clk 0:00:32.6]}
34... fxe5 {[%clk 0:00:09.3]} 35. Qxe5 {[%clk 0:00:26]} 35... Ne4 {[%clk
0:00:05.7]} 36. Qb2 {[%clk 0:00:02.7]} 36... Nxd2 {[%clk 0:00:04.7]} 37. Qxd2
{[%clk 0:00:03.6]} 37... Qe4+ {[%clk 0:00:04.4]} 38. Ng2 {[%clk 0:00:03.2]}
38... Qe2 {[%clk 0:00:04.4]} 39. Qxe2 {[%clk 0:00:01.7]} 39... dxe2 {[%clk
0:00:04.2]} 40. Re1 {[%clk 0:00:02.6]} 40... Rd1 {[%clk 0:00:04.5]} 41. Kg1
{[%clk 0:00:03.5]} 41... Rxe1+ {[%clk 0:00:04.5]} 42. Nxe1 {[%clk 0:00:04.4]}
42... Rc1 {[%clk 0:00:04.8]} 43. Kf2 {[%clk 0:00:05.3]} 43... Ra1 {[%clk
0:00:05.1]} 44. Kxe2 {[%clk 0:00:05.7]} 44... Rxa2+ {[%clk 0:00:05.5]} 45. Kf3
{[%clk 0:00:06.6]} 45... Rxh2 {[%clk 0:00:05.7]} 46. Ng2 {[%clk 0:00:07.5]}
46... Rxg2 {[%clk 0:00:05.4]} 47. Kxg2 {[%clk 0:00:07.7]} 47... Kf7 {[%clk
0:00:06.3]} 48. Kf3 {[%clk 0:00:08.6]} 48... Kf6 {[%clk 0:00:07.2]} 0-1